Workbook

Sheet MATRICULA
C2: Secretaría de Educación Pública del Estado de Baja California Sur
C3: Dirección de Educación Secundaria
C5: MATRÍCULA
C7: PERIODO DE EVALUACIÓN: | O7: CONCENTRADO CIERRE CICLO ESCOLAR
C8: CICLO ESCOLAR : | O8: 2022-2023
I11: MTRA. OFELIA ELIZABETH OCHOA ROMERO
I12: DIRECCIÓN DE EDUCACIÓN SECUNDARIA
B14: MODALIDAD | C14: MATRÍCULA
C15: INSCRIPCIÓN INICIAL | O15: CAMBIOS DESDE OTRAS ESCUELAS (ALTAS)
C16: PRIMERO | F16: SEGUNDO | I16: TERCERO | L16: TOTAL | O16: PRIMERO | R16: SEGUNDO | U16: TERCERO | X16: TOTAL
C17: H | D17: M | E17: T | F17: H | G17: M | H17: T | I17: H | J17: M | K17: T | L17: H | M17: M | N17: T | O17: H | P17: M | Q17: T | R17: H | S17: M | T17: T | U17: H | V17: M | W17: T | X17: H | Y17: M | Z17: T
B18: GENERALES PÚBLICAS | C18: 2887 | D18: 2808 | E18: =C18+D18 -> 5695 | F18: 2813 | G18: 2706 | H18: =F18+G18 -> 5519 | I18: 2785 | J18: 2874 | K18: =I18+J18 -> 5659 | L18: =C18+F18+I18 -> 8485 | M18: =D18+G18+J18 -> 8388 | N18: =L18+M18 -> 16873 | O18: 115 | P18: 97 | Q18: =O18+P18 -> 212 | R18: 79 | S18: 124 | T18: =R18+S18 -> 203 | U18: 61 | V18: 86 | W18: =U18+V18 -> 147 | X18: =O18+R18+U18 -> 255 | Y18: =P18+S18+V18 -> 307 | Z18: =X18+Y18 -> 562
B19: GENERALES PARTICULARES | C19: 798 | D19: 756 | E19: =C19+D19 -> 1554 | F19: 631 | G19: 649 | H19: =F19+G19 -> 1280 | I19: 590 | J19: 631 | K19: =I19+J19 -> 1221 | L19: =C19+F19+I19 -> 2019 | M19: =D19+G19+J19 -> 2036 | N19: =L19+M19 -> 4055 | O19: 41 | P19: 34 | Q19: =O19+P19 -> 75 | R19: 27 | S19: 33 | T19: =R19+S19 -> 60 | U19: 17 | V19: 17 | W19: =U19+V19 -> 34 | X19: =O19+R19+U19 -> 85 | Y19: =P19+S19+V19 -> 84 | Z19: =X19+Y19 -> 169
B20: SEC TÉCNICAS | C20: 2571 | D20: 2549 | E20: =IF(SUM(C20,D20)=0,"",SUM(C20,D20)) -> 5120 | F20: 2582 | G20: 2533 | H20: =IF(SUM(F20,G20)=0,"",SUM(F20,G20)) -> 5115 | I20: 2540 | J20: 2533 | K20: =IF(SUM(I20,J20)=0,"",SUM(I20,J20)) -> 5073 | L20: =IF(SUM(C20,F20,I20)=0,"",SUM(C20,F20,I20)) -> 7693 | M20: =IF(SUM(D20,G20,J20)=0,"",SUM(SUM(D20,G20,J20))) -> 7615 | N20: =IF(SUM(L20,M20)=0,"",SUM(L20,M20)) -> 15308 | O20: 102 | P20: 96 | Q20: =IF(SUM(O20,P20)=0,"",SUM(O20,P20)) -> 198 | R20: 89 | S20: 97 | T20: =IF(SUM(R20,S20)=0,"",SUM(R20,S20)) -> 186 | U20: 40 | V20: 70 | W20: =IF(SUM(U20,V20)=0,"",SUM(U20,V20)) -> 110 | X20: =IF(SUM(O20,R20,U20)=0,"",SUM(O20,R20,U20)) -> 231 | Y20: =IF(SUM(P20,S20,V20)=0,"",SUM(SUM(P20,S20,V20))) -> 263 | Z20: =IF(SUM(X20,Y20)=0,"",SUM(X20,Y20)) -> 494
B21: TELESECUNDARIAS | C21: 935 | D21: 774 | E21: =IF(SUM(C21,D21)=0,"",SUM(C21,D21)) -> 1709 | F21: 925 | G21: 802 | H21: =IF(SUM(F21,G21)=0,"",SUM(F21,G21)) -> 1727 | I21: 840 | J21: 748 | K21: =IF(SUM(I21,J21)=0,"",SUM(I21,J21)) -> 1588 | L21: =IF(SUM(C21,F21,I21)=0,"",SUM(C21,F21,I21)) -> 2700 | M21: =IF(SUM(D21,G21,J21)=0,"",SUM(SUM(D21,G21,J21))) -> 2324 | N21: =IF(SUM(L21,M21)=0,"",SUM(L21,M21)) -> 5024 | O21: 50 | P21: 40 | Q21: =IF(SUM(O21,P21)=0,"",SUM(O21,P21)) -> 90 | R21: 39 | S21: 51 | T21: =IF(SUM(R21,S21)=0,"",SUM(R21,S21)) -> 90 | U21: 31 | V21: 38 | W21: =IF(SUM(U21,V21)=0,"",SUM(U21,V21)) -> 69 | X21: =IF(SUM(O21,R21,U21)=0,"",SUM(O21,R21,U21)) -> 120 | Y21: =IF(SUM(P21,S21,V21)=0,"",SUM(SUM(P21,S21,V21))) -> 129 | Z21: =IF(SUM(X21,Y21)=0,"",SUM(X21,Y21)) -> 249
E22: =IF(SUM(C22,D22)=0,"",SUM(C22,D22)) ->  | H22: =IF(SUM(F22,G22)=0,"",SUM(F22,G22)) ->  | K22: =IF(SUM(I22,J22)=0,"",SUM(I22,J22)) ->  | L22: =IF(SUM(C22,F22,I22)=0,"",SUM(C22,F22,I22)) ->  | M22: =IF(SUM(D22,G22,J22)=0,"",SUM(SUM(D22,G22,J22))) ->  | N22: =IF(SUM(L22,M22)=0,"",SUM(L22,M22)) ->  | Q22: =IF(SUM(O22,P22)=0,"",SUM(O22,P22)) ->  | T22: =IF(SUM(R22,S22)=0,"",SUM(R22,S22)) ->  | W22: =IF(SUM(U22,V22)=0,"",SUM(U22,V22)) ->  | X22: =IF(SUM(O22,R22,U22)=0,"",SUM(O22,R22,U22)) ->  | Y22: =IF(SUM(P22,S22,V22)=0,"",SUM(SUM(P22,S22,V22))) ->  | Z22: =IF(SUM(X22,Y22)=0,"",SUM(X22,Y22)) -> 
B23: TOTAL | C23: =IF(SUM(C18:C22)=0,"",SUM(C18:C22)) -> 7191 | D23: 6887 | E23: 14078 | F23: 6951 | G23: 6690 | H23: 13641 | I23: 6755 | J23: 6786 | K23: 13541 | L23: 20897 | M23: 20363 | N23: 41260 | O23: 308 | P23: 267 | Q23: 575 | R23: 234 | S23: 305 | T23: 539 | U23: 149 | V23: 211 | W23: 360 | X23: 691 | Y23: 783 | Z23: 1474
B25: MODALIDAD | C25: BAJAS | AA25: EXISTENCIA
C26: DESERCIÓN | O26: CAMBIOS HACIA OTRAS ESCUELAS (TRASLADOS)
C27: PRIMERO | F27: SEGUNDO | I27: TERCERO | L27: TOTAL | O27: PRIMERO | R27: SEGUNDO | U27: TERCERO | X27: TOTAL | AA27: PRIMERO | AD27: SEGUNDO | AG27: TERCERO | AJ27: TOTAL
C28: H | D28: M | E28: T | F28: H | G28: M | H28: T | I28: H | J28: M | K28: T | L28: H | M28: M | N28: T | O28: H | P28: M | Q28: T | R28: H | S28: M | T28: T | U28: H | V28: M | W28: T | X28: H | Y28: M | Z28: T | AA28: H | AB28: M | AC28: T | AD28: H | AE28: M | AF28: T | AG28: H | AH28: M | AI28: T | AJ28: H | AK28: M | AL28: T
B29: =IF(B18=0,"",B18) -> GENERALES PÚBLICAS | C29: 4 | D29: 3 | E29: =C29+D29 -> 7 | F29: 4 | G29: 8 | H29: =F29+G29 -> 12 | I29: 22 | J29: 17 | K29: =I29+J29 -> 39 | L29: =C29+F29+I29 -> 30 | M29: =D29+G29+J29 -> 28 | N29: =L29+M29 -> 58 | O29: 132 | P29: 111 | Q29: =O29+P29 -> 243 | R29: 132 | S29: 140 | T29: =R29+S29 -> 272 | U29: 96 | V29: 88 | W29: =U29+V29 -> 184 | X29: =O29+R29+U29 -> 360 | Y29: =P29+S29+V29 -> 339 | Z29: =X29+Y29 -> 699 | AA29: =C18+O18-C29-O29 -> 2866 | AB29: =D18+P18-D29-P29 -> 2791 | AC29: =AA29+AB29 -> 5657 | AD29: =F18+R18-F29-R29 -> 2756 | AE29: =G18+S18-G29-S29 -> 2682 | AF29: =AD29+AE29 -> 5438 | AG29: =I18+U18-I29-U29 -> 2728 | AH29: =J18+V18-J29-V29 -> 2855 | AI29: =AG29+AH29 -> 5583 | AJ29: =AA29+AD29+AG29 -> 8350 | AK29: =AB29+AE29+AH29 -> 8328 | AL29: =AJ29+AK29 -> 16678
B30: =IF(B19=0,"",B19) -> GENERALES PARTICULARES | C30: 8 | D30: 3 | E30: =C30+D30 -> 11 | F30: 6 | G30: 2 | H30: =F30+G30 -> 8 | I30: 1 | J30: 2 | K30: =I30+J30 -> 3 | L30: =C30+F30+I30 -> 15 | M30: =D30+G30+J30 -> 7 | N30: =L30+M30 -> 22 | O30: 14 | P30: 13 | Q30: =O30+P30 -> 27 | R30: 16 | S30: 22 | T30: =R30+S30 -> 38 | U30: 6 | V30: 16 | W30: =U30+V30 -> 22 | X30: =O30+R30+U30 -> 36 | Y30: =P30+S30+V30 -> 51 | Z30: =X30+Y30 -> 87 | AA30: =C19+O19-C30-O30 -> 817 | AB30: =D19+P19-D30-P30 -> 774 | AC30: =AA30+AB30 -> 1591 | AD30: =F19+R19-F30-R30 -> 636 | AE30: =G19+S19-G30-S30 -> 658 | AF30: =AD30+AE30 -> 1294 | AG30: =I19+U19-I30-U30 -> 600 | AH30: =J19+V19-J30-V30 -> 630 | AI30: 1231 | AJ30: =AA30+AD30+AG30 -> 2053 | AK30: =AB30+AE30+AH30 -> 2062 | AL30: =AJ30+AK30 -> 4115
B31: =IF(B20=0,"",B20) -> SEC TÉCNICAS | C31: 15 | D31: 10 | E31: =IF(SUM(C31,D31)=0,"",SUM(C31,D31)) -> 25 | F31: 16 | G31: 15 | H31: =IF(SUM(F31,G31)=0,"",SUM(F31,G31)) -> 31 | I31: 12 | J31: 14 | K31: =IF(SUM(I31,J31)=0,"",SUM(I31,J31)) -> 26 | L31: =IF(SUM(C31,F31,I31)=0,"",SUM(C31,F31,I31)) -> 43 | M31: =IF(SUM(D31,G31,J31)=0,"",SUM(SUM(D31,G31,J31))) -> 39 | N31: =IF(SUM(L31,M31)=0,"",SUM(L31,M31)) -> 82 | O31: 93 | P31: 96 | Q31: =IF(SUM(O31,P31)=0,"",SUM(O31,P31)) -> 189 | R31: 89 | S31: 97 | T31: =IF(SUM(R31,S31)=0,"",SUM(R31,S31)) -> 186 | U31: 53 | V31: 60 | W31: =IF(SUM(U31,V31)=0,"",SUM(U31,V31)) -> 113 | X31: =IF(SUM(O31,R31,U31)=0,"",SUM(O31,R31,U31)) -> 235 | Y31: =IF(SUM(P31,S31,V31)=0,"",SUM(SUM(P31,S31,V31))) -> 253 | Z31: =IF(SUM(X31,Y31)=0,"",SUM(X31,Y31)) -> 488 | AA31: =IF(SUM(C20,O20-C31-O31)=0,"",SUM(C20,O20-C31-O31)) -> 2565 | AB31: 2539 | AC31: =IF(SUM(AA31,AB31)=0,"",SUM(AA31,AB31)) -> 5104 | AD31: =IF(SUM(F20,R20-F31-R31)=0,"",SUM(F20,R20-F31-R31)) -> 2566 | AE31: 2518 | AF31: =IF(SUM(AD31,AE31)=0,"",SUM(AD31,AE31)) -> 5084 | AG31: =IF(SUM(I20,U20-I31-U31)=0,"",SUM(I20,U20-I31-U31)) -> 2515 | AH31: 2529 | AI31: =IF(SUM(AG31,AH31)=0,"",SUM(AG31,AH31)) -> 5044 | AJ31: =IF(SUM(AA31,AD31,AG31)=0,"",SUM(AA31,AD31,AG31)) -> 7646 | AK31: =IF(SUM(AB31,AE31,AH31)=0,"",SUM(SUM(AB31,AE31,AH31))) -> 7586 | AL31: =IF(SUM(AJ31,AK31)=0,"",SUM(AJ31,AK31)) -> 15232
B32: =IF(B21=0,"",B21) -> TELESECUNDARIAS | C32: 4 | D32: 5 | E32: =IF(SUM(C32,D32)=0,"",SUM(C32,D32)) -> 9 | F32: 10 | G32: 7 | H32: =IF(SUM(F32,G32)=0,"",SUM(F32,G32)) -> 17 | I32: 8 | J32: 6 | K32: =IF(SUM(I32,J32)=0,"",SUM(I32,J32)) -> 14 | L32: =IF(SUM(C32,F32,I32)=0,"",SUM(C32,F32,I32)) -> 22 | M32: =IF(SUM(D32,G32,J32)=0,"",SUM(SUM(D32,G32,J32))) -> 18 | N32: =IF(SUM(L32,M32)=0,"",SUM(L32,M32)) -> 40 | O32: 45 | P32: 33 | Q32: =IF(SUM(O32,P32)=0,"",SUM(O32,P32)) -> 78 | R32: 38 | S32: 39 | T32: =IF(SUM(R32,S32)=0,"",SUM(R32,S32)) -> 77 | U32: 32 | V32: 24 | W32: =IF(SUM(U32,V32)=0,"",SUM(U32,V32)) -> 56 | X32: =IF(SUM(O32,R32,U32)=0,"",SUM(O32,R32,U32)) -> 115 | Y32: =IF(SUM(P32,S32,V32)=0,"",SUM(SUM(P32,S32,V32))) -> 96 | Z32: =IF(SUM(X32,Y32)=0,"",SUM(X32,Y32)) -> 211 | AA32: 936 | AB32: 776 | AC32: =IF(SUM(AA32,AB32)=0,"",SUM(AA32,AB32)) -> 1712 | AD32: 916 | AE32: 807 | AF32: =IF(SUM(AD32,AE32)=0,"",SUM(AD32,AE32)) -> 1723 | AG32: 831 | AH32: 756 | AI32: =IF(SUM(AG32,AH32)=0,"",SUM(AG32,AH32)) -> 1587 | AJ32: =IF(SUM(AA32,AD32,AG32)=0,"",SUM(AA32,AD32,AG32)) -> 2683 | AK32: =IF(SUM(AB32,AE32,AH32)=0,"",SUM(SUM(AB32,AE32,AH32))) -> 2339 | AL32: =IF(SUM(AJ32,AK32)=0,"",SUM(AJ32,AK32)) -> 5022
B33: =IF(B22=0,"",B22) ->  | E33: =IF(SUM(C33,D33)=0,"",SUM(C33,D33)) ->  | H33: =IF(SUM(F33,G33)=0,"",SUM(F33,G33)) ->  | K33: =IF(SUM(I33,J33)=0,"",SUM(I33,J33)) ->  | L33: =IF(SUM(C33,F33,I33)=0,"",SUM(C33,F33,I33)) ->  | M33: =IF(SUM(D33,G33,J33)=0,"",SUM(SUM(D33,G33,J33))) ->  | N33: =IF(SUM(L33,M33)=0,"",SUM(L33,M33)) ->  | Q33: =IF(SUM(O33,P33)=0,"",SUM(O33,P33)) ->  | T33: =IF(SUM(R33,S33)=0,"",SUM(R33,S33)) ->  | W33: =IF(SUM(U33,V33)=0,"",SUM(U33,V33)) ->  | X33: =IF(SUM(O33,R33,U33)=0,"",SUM(O33,R33,U33)) ->  | Y33: =IF(SUM(P33,S33,V33)=0,"",SUM(SUM(P33,S33,V33))) ->  | Z33: =IF(SUM(X33,Y33)=0,"",SUM(X33,Y33)) ->  | AC33: =IF(SUM(AA33,AB33)=0,"",SUM(AA33,AB33)) ->  | AF33: =IF(SUM(AD33,AE33)=0,"",SUM(AD33,AE33)) ->  | AI33: =IF(SUM(AG33,AH33)=0,"",SUM(AG33,AH33)) ->  | AJ33: =IF(SUM(AA33,AD33,AG33)=0,"",SUM(AA33,AD33,AG33)) ->  | AK33: =IF(SUM(AB33,AE33,AH33)=0,"",SUM(SUM(AB33,AE33,AH33))) ->  | AL33: =IF(SUM(AJ33,AK33)=0,"",SUM(AJ33,AK33)) -> 
B34: TOTAL | C34: =IF(SUM(C29:C33)=0,"",SUM(C29:C33)) -> 31 | D34: 21 | E34: 52 | F34: 36 | G34: 32 | H34: 68 | I34: 43 | J34: 39 | K34: 82 | L34: 110 | M34: 92 | N34: 202 | O34: 284 | P34: 253 | Q34: 537 | R34: 275 | S34: 298 | T34: 573 | U34: 187 | V34: 188 | W34: 375 | X34: 746 | Y34: 739 | Z34: 1485 | AA34: 7184 | AB34: 6880 | AC34: 14064 | AD34: 6874 | AE34: 6665 | AF34: 13539 | AG34: 6674 | AH34: 6770 | AI34: 13445 | AJ34: 20732 | AK34: 20315 | AL34: 41047

Sheet APROV 1
C3: Secretaría de Educación Pública del Estado de Baja California Sur
C4: Dirección de Educación Secundaria
C5: APROVECHAMIENTO Y RIESGO DE NO ACREDITAR
C6: PRIMER GRADO
C7: PERIODO EVALUACIÓN: | O7: =IF(MATRICULA!O7=0,"",MATRICULA!O7) -> CONCENTRADO CIERRE CICLO ESCOLAR
C8: CICLO ESCOLAR : | O8: =IF(MATRICULA!O8=0,"",MATRICULA!O8) -> 2022-2023
F10: =MATRICULA!I11 -> MTRA. OFELIA ELIZABETH OCHOA ROMERO
F11: =MATRICULA!I12 -> DIRECCIÓN DE EDUCACIÓN SECUNDARIA
A13: Promedio de Aprovechamiento de los Campos de Formación Académica | AA13: Promedio de Aprovechamiento de las Áreas de Desarrollo Personal y Social | AG13: Prom. Final
A14: MODALIDAD | B14: GRUPOS | C14: Lengua Materna | F14: Matemáticas | I14: Inglés | L14: Ciencias y tecnología (Biología) | O14: Historia | R14: Geografía | U14: Formación Cívica y Ética | X14: Tecnología I | AA14: Educación Física | AD14: Artes
C15: CALIF | F15: CALIF | I15: CALIF | L15: CALIF | O15: CALIF | R15: CALIF | U15: CALIF | X15: CALIF | AA15: CALIF | AD15: CALIF | AG15: CALIF
A16: =IF(MATRICULA!B18=0,"",MATRICULA!B18) -> GENERALES PÚBLICAS | B16: 185 | C16: 8.4 | F16: 8.3 | I16: 8.6 | L16: 8.6 | O16: 8.6 | R16: 8.6 | U16: 8.6 | X16: 8.8 | AA16: 9.3 | AD16: 9 | AG16: =IFERROR(ROUND(AVERAGE(C16:AF16),1),"") -> 8.7
A17: =IF(MATRICULA!B19=0,"",MATRICULA!B19) -> GENERALES PARTICULARES | B17: 102 | C17: 8.4 | F17: 8.4 | I17: 8.8 | L17: 8.6 | O17: 8.5 | R17: 8.7 | U17: 8.8 | X17: 9 | AA17: 9.6 | AD17: 9.3 | AG17: 8.8
A18: =IF(MATRICULA!B20=0,"",MATRICULA!B20) -> SEC TÉCNICAS | B18: 292 | C18: 8.4 | F18: 8.2 | I18: 8.4 | L18: 8.5 | O18: 8.4 | R18: 8.6 | U18: 8.4 | X18: 8.7 | AA18: 9.5 | AD18: 8.9 | AG18: 8.6
A19: =IF(MATRICULA!B21=0,"",MATRICULA!B21) -> TELESECUNDARIAS | B19: 101 | C19: 8.2 | F19: 8 | I19: 8.2 | L19: 8.2 | O19: 8.1 | R19: 8.1 | U19: 8.5 | X19: 9 | AA19: 9.2 | AD19: 9.1 | AG19: 8.5
A20: =IF(MATRICULA!B22=0,"",MATRICULA!B22) -> 
A21: Gral. | B21: =IF(SUM(B16:B20)=0,"",SUM(B16:B20)) -> 680 | C21: =IFERROR(ROUND(AVERAGE(C16:E20),1),"") -> 8.4 | F21: =IFERROR(ROUND(AVERAGE(F16:H20),1),"") -> 8.2 | I21: =IFERROR(ROUND(AVERAGE(I16:K20),1),"") -> 8.5 | L21: =IFERROR(ROUND(AVERAGE(L16:N20),1),"") -> 8.5 | O21: =IFERROR(ROUND(AVERAGE(O16:Q20),1),"") -> 8.4 | R21: =IFERROR(ROUND(AVERAGE(R16:T20),1),"") -> 8.5 | U21: =IFERROR(ROUND(AVERAGE(U16:W20),1),"") -> 8.6 | X21: =IFERROR(ROUND(AVERAGE(X16:Z20),1),"") -> 8.9 | AA21: =IFERROR(ROUND(AVERAGE(AA16:AC20),1),"") -> 9.4 | AD21: =IFERROR(ROUND(AVERAGE(AD16:AF20),1),"") -> 9.1 | AG21: 8.7
A23: Campos de Formación Académica en riesgo de no acreditar | AA23: Áreas de Desarrollo Personal y Social en situación de riesgo de no acreditar | AG23: Total
A24: MODALIDAD | C24: Lengua Materna | F24: Matemáticas | I24: Inglés | L24: Ciencias y tecnología (Biología) | O24: Historia | R24: Geografía | U24: Formación Cívica y Ética | X24: Tecnología I | AA24: Educación Física | AD24: Artes
C25: 5 | D25: 6 | E25: T | F25: 5 | G25: 6 | H25: T | I25: 5 | J25: 6 | K25: T | L25: 5 | M25: 6 | N25: T | O25: 5 | P25: 6 | Q25: T | R25: 5 | S25: 6 | T25: T | U25: 5 | V25: 6 | W25: T | X25: 5 | Y25: 6 | Z25: T | AA25: 5 | AB25: 6 | AC25: T | AD25: 5 | AE25: 6 | AF25: T | AG25: 5 | AH25: 6
A26: =IF(MATRICULA!B18=0,"",MATRICULA!B18) -> GENERALES PÚBLICAS | C26: 102 | D26: 568 | E26: =C26+D26 -> 670 | F26: 169 | G26: 679 | H26: =F26+G26 -> 848 | I26: 96 | J26: 424 | K26: =I26+J26 -> 520 | L26: 130 | M26: 425 | N26: =L26+M26 -> 555 | O26: 88 | P26: 458 | Q26: =O26+P26 -> 546 | R26: 110 | S26: 422 | T26: =R26+S26 -> 532 | U26: 85 | V26: 434 | W26: =U26+V26 -> 519 | X26: 122 | Y26: 384 | Z26: =X26+Y26 -> 506 | AA26: 37 | AB26: 87 | AC26: =AA26+AB26 -> 124 | AD26: 43 | AE26: 279 | AF26: =AD26+AE26 -> 322 | AG26: =C26+F26+I26+L26+O26+R26+U26+X26+AA26+AD26 -> 982 | AH26: =D26+G26+J26+M26+P26+S26+V26+Y26+AB26+AE26 -> 4160
A27: =IF(MATRICULA!B19=0,"",MATRICULA!B19) -> GENERALES PARTICULARES | C27: 12 | D27: 53 | E27: =C27+D27 -> 65 | F27: 22 | G27: 125 | H27: =F27+G27 -> 147 | I27: 6 | J27: 84 | K27: =I27+J27 -> 90 | L27: 15 | M27: 83 | N27: =L27+M27 -> 98 | O27: 9 | P27: 97 | Q27: =O27+P27 -> 106 | R27: 2 | S27: 75 | T27: =R27+S27 -> 77 | U27: 8 | V27: 83 | W27: =U27+V27 -> 91 | X27: 4 | Y27: 50 | Z27: =X27+Y27 -> 54 | AA27: 2 | AB27: 7 | AC27: =AA27+AB27 -> 9 | AD27: 0 | AE27: 29 | AF27: =AD27+AE27 -> 29 | AG27: =C27+F27+I27+L27+O27+R27+U27+X27+AA27+AD27 -> 80 | AH27: =D27+G27+J27+M27+P27+S27+V27+Y27+AB27+AE27 -> 686
A28: =IF(MATRICULA!B20=0,"",MATRICULA!B20) -> SEC TÉCNICAS | C28: 138 | D28: 550 | E28: =IF(SUM(C28,D28)=0,"",SUM(C28,D28)) -> 688 | F28: 113 | G28: 663 | H28: =IF(SUM(F28,G28)=0,"",SUM(F28,G28)) -> 776 | I28: 104 | J28: 615 | K28: =IF(SUM(I28,J28)=0,"",SUM(I28,J28)) -> 719 | L28: 117 | M28: 536 | N28: =IF(SUM(L28,M28)=0,"",SUM(L28,M28)) -> 653 | O28: 113 | P28: 612 | Q28: =IF(SUM(O28,P28)=0,"",SUM(O28,P28)) -> 725 | R28: 99 | S28: 457 | T28: =IF(SUM(R28,S28)=0,"",SUM(R28,S28)) -> 556 | U28: 98 | V28: 598 | W28: =IF(SUM(U28,V28)=0,"",SUM(U28,V28)) -> 696 | X28: 84 | Y28: 421 | Z28: =IF(SUM(X28,Y28)=0,"",SUM(X28,Y28)) -> 505 | AA28: 25 | AB28: 55 | AC28: =IF(SUM(AA28,AB28)=0,"",SUM(AA28,AB28)) -> 80 | AD28: 49 | AE28: 296 | AF28: =IF(SUM(AD28,AE28)=0,"",SUM(AD28,AE28)) -> 345 | AG28: =IF(SUM(C28,F28,I28,L28,O28,R28,U28,X28,AA28,AD28)=0,"",SUM(C28,F28,I28,L28,O28,R28,U28,X28,AA28,AD28)) -> 940 | AH28: 4803
A29: =IF(MATRICULA!B21=0,"",MATRICULA!B21) -> TELESECUNDARIAS | C29: 58 | D29: 312 | E29: =IF(SUM(C29,D29)=0,"",SUM(C29,D29)) -> 370 | F29: 57 | G29: 397 | H29: =IF(SUM(F29,G29)=0,"",SUM(F29,G29)) -> 454 | I29: 68 | J29: 358 | K29: =IF(SUM(I29,J29)=0,"",SUM(I29,J29)) -> 426 | L29: 59 | M29: 303 | N29: =IF(SUM(L29,M29)=0,"",SUM(L29,M29)) -> 362 | O29: 69 | P29: 351 | Q29: =IF(SUM(O29,P29)=0,"",SUM(O29,P29)) -> 420 | R29: 69 | S29: 309 | T29: =IF(SUM(R29,S29)=0,"",SUM(R29,S29)) -> 378 | U29: 52 | V29: 239 | W29: =IF(SUM(U29,V29)=0,"",SUM(U29,V29)) -> 291 | X29: 51 | Y29: 122 | Z29: =IF(SUM(X29,Y29)=0,"",SUM(X29,Y29)) -> 173 | AA29: 35 | AB29: 63 | AC29: =IF(SUM(AA29,AB29)=0,"",SUM(AA29,AB29)) -> 98 | AD29: 44 | AE29: 129 | AF29: =IF(SUM(AD29,AE29)=0,"",SUM(AD29,AE29)) -> 173 | AG29: 562 | AH29: 2583
A30: =IF(MATRICULA!B22=0,"",MATRICULA!B22) ->  | E30: =IF(SUM(C30,D30)=0,"",SUM(C30,D30)) ->  | H30: =IF(SUM(F30,G30)=0,"",SUM(F30,G30)) ->  | K30: =IF(SUM(I30,J30)=0,"",SUM(I30,J30)) ->  | N30: =IF(SUM(L30,M30)=0,"",SUM(L30,M30)) ->  | Q30: =IF(SUM(O30,P30)=0,"",SUM(O30,P30)) ->  | T30: =IF(SUM(R30,S30)=0,"",SUM(R30,S30)) ->  | W30: =IF(SUM(U30,V30)=0,"",SUM(U30,V30)) ->  | Z30: =IF(SUM(X30,Y30)=0,"",SUM(X30,Y30)) ->  | AC30: =IF(SUM(AA30,AB30)=0,"",SUM(AA30,AB30)) ->  | AF30: =IF(SUM(AD30,AE30)=0,"",SUM(AD30,AE30)) -> 
A31: Total | C31: =IF(SUM(C26:C30)=0,"",SUM(C26:C30)) -> 310 | D31: 1483 | E31: 1793 | F31: 361 | G31: 1864 | H31: 2225 | I31: 274 | J31: 1481 | K31: 1755 | L31: 321 | M31: 1347 | N31: 1668 | O31: 279 | P31: 1518 | Q31: 1797 | R31: 280 | S31: 1263 | T31: 1543 | U31: 243 | V31: 1354 | W31: 1597 | X31: 261 | Y31: 977 | Z31: 1238 | AA31: 99 | AB31: 212 | AC31: 311 | AD31: 136 | AE31: 733 | AF31: 869 | AG31: 2564 | AH31: 12232
A33: Nota: Para las columnas "Campos de Formación Académica y Áreas de Desarrollo Personal y Social en riesgo de no acreditar" registre la cantidad de cincos o seis que existen en cada campo o área.

Sheet Gráfica APROV 1
B3: Secretaría de Educación Pública del Estado de Baja California Sur
B4: Dirección de Educación Secundaria
B5: PRIMER GRADO
B6: PERIODO EVALUACIÓN: | N6: =MATRICULA!$O$7 -> CONCENTRADO CIERRE CICLO ESCOLAR
B7: CICLO ESCOLAR : | N7: =MATRICULA!$O$8 -> 2022-2023
H9: =MATRICULA!I11 -> MTRA. OFELIA ELIZABETH OCHOA ROMERO
H10: =MATRICULA!I12 -> DIRECCIÓN DE EDUCACIÓN SECUNDARIA
B17: Lengua Materna | C17: Matemáticas | D17: Inglés | E17: Ciencias y tecnología (Biología) | F17: Historia | G17: Geografía | H17: Formación Cívica y Ética | I17: Tecnología I | J17: Educación Física | K17: Artes
B18: ='APROV 1'!C21 -> 8.4 | C18: ='APROV 1'!F21 -> 8.2 | D18: ='APROV 1'!I21 -> 8.5 | E18: ='APROV 1'!L21 -> 8.5 | F18: ='APROV 1'!O21 -> 8.4 | G18: ='APROV 1'!R21 -> 8.5 | H18: ='APROV 1'!U21 -> 8.6 | I18: ='APROV 1'!X21 -> 8.9 | J18: ='APROV 1'!AA21 -> 9.4 | K18: ='APROV 1'!AD21 -> 9.1

Sheet R1
B3: Secretaría de Educación Pública del Estado de Baja California Sur
B4: Dirección de Educación Secundaria
B6: REGISTRO DE ALUMNOS CON CALIFICACIÓN "5 Y 6" EN UNA O MÁS ASIGNATURAS
B7: PRIMER GRADO
C9: PERIODO DE EVALUACIÓN: | E9: CONCENTRADO CIERRE CICLO ESCOLAR
C10: CICLO ESCOLAR: | E10: =[1]MATRICULA!O8 -> 2022-2023
C12: =MATRICULA!I11 -> MTRA. OFELIA ELIZABETH OCHOA ROMERO
C13: =MATRICULA!I12 -> DIRECCIÓN DE EDUCACIÓN SECUNDARIA
A15: REGISTRAR LA CANTIDAD DE ALUMNOS CON CALIFICACIÓN "5 Y 6" EN UNA O MÁS ASIGNATURAS SEGÚN CORRESPONDA
A16: MODALIDAD | B16: 1 ASIGNATURA | C16: 2 ASIGNATURAS | D16: 3 ASIGNATURAS | E16: 4 ASIGNATURAS | F16: 5 ASIGNATURAS | G16: 6 O MÁS ASIGNATURAS | H16: TOTAL
A17: =MATRICULA!B18 -> GENERALES PÚBLICAS | B17: 573 | C17: 381 | D17: 209 | E17: 191 | F17: 185 | G17: 373 | H17: =SUM(B17:G17) -> 1912
A18: =MATRICULA!B19 -> GENERALES PARTICULARES | B18: 79 | C18: 52 | D18: 34 | E18: 31 | F18: 24 | G18: 70 | H18: =SUM(B18:G18) -> 290
A19: =MATRICULA!B20 -> SEC TÉCNICAS | B19: 571 | C19: 336 | D19: 213 | E19: 148 | F19: 152 | G19: 400 | H19: =SUM(B19:G19) -> 1820
A20: TELESECUNDARIAS | B20: 100 | C20: 59 | D20: 47 | E20: 38 | F20: 42 | G20: 136 | H20: =SUM(B20:G20) -> 422
A22: TOTAL | B22: =SUM(B17:B21) -> 1323 | C22: 828 | D22: 503 | E22: 408 | F22: 403 | G22: 979 | H22: 4444

Sheet Gráfica R1
B3: Secretaría de Educación Pública del Estado de Baja California Sur
B4: Dirección de Educación Secundaria
B5: PRIMER GRADO
N6: =[1]MATRICULA!O7 -> CIERRE DE CICLO ESCOLAR 2022-2023
B7: PERIODO EVALUACIÓN:
B8: CICLO ESCOLAR : | N8: =[1]MATRICULA!O8 -> 2022-2023
J10: =MATRICULA!I11 -> MTRA. OFELIA ELIZABETH OCHOA ROMERO
J11: =MATRICULA!I12 -> DIRECCIÓN DE EDUCACIÓN SECUNDARIA
B17: ='R1'!B16 -> 1 ASIGNATURA | C17: ='R1'!C16 -> 2 ASIGNATURAS | D17: ='R1'!D16 -> 3 ASIGNATURAS | E17: ='R1'!E16 -> 4 ASIGNATURAS | F17: ='R1'!F16 -> 5 ASIGNATURAS | G17: ='R1'!G16 -> 6 O MÁS ASIGNATURAS
B18: ='R1'!B22 -> 1323 | C18: ='R1'!C22 -> 828 | D18: ='R1'!D22 -> 503 | E18: ='R1'!E22 -> 408 | F18: ='R1'!F22 -> 403 | G18: ='R1'!G22 -> 979 | I18: ='[2]APROV 1'!X38 ->  | J18: ='[2]APROV 1'!AA38 ->  | K18: ='[2]APROV 1'!AD38 -> 

Sheet APROV 2
C4: Secretaría de Educación Pública del Estado de Baja California Sur
C5: Dirección de Educación Secundaria
C6: APROVECHAMIENTO Y RIESGO DE NO ACREDITAR
C7: SEGUNDO GRADO
C8: PERIODO EVALUACIÓN: | O8: =IF('APROV 1'!O7:AA7<>0,'APROV 1'!O7:AA7, "") -> CONCENTRADO CIERRE CICLO ESCOLAR
C9: CICLO ESCOLAR : | O9: =IF('APROV 1'!O8:AA8<>0, 'APROV 1'!O8:AA8, "") -> 2022-2023
I13: =MATRICULA!I11 -> MTRA. OFELIA ELIZABETH OCHOA ROMERO
I14: =MATRICULA!I12 -> DIRECCIÓN DE EDUCACIÓN SECUNDARIA
A17: Promedio de Aprovechamiento de los Campos de Formación Académica | X17: Promedio de Aprovechamiento de las Áreas de Desarrollo Personal y Social
A18: MODALIDAD | B18: GRUPOS | C18: Lengua Materna | F18: Matemáticas | I18: Inglés | L18: Ciencias y tecnología (Física) | O18: Historia | R18: Formación Cívica y Ética | U18: Tecnología II | X18: Educación Física | AA18: Artes | AD18: Prom. Final
C19: CALIF | F19: CALIF | I19: CALIF | L19: CALIF | O19: CALIF | R19: CALIF | U19: CALIF | X19: CALIF | AA19: CALIF | AD19: CALIF
A20: =IF(MATRICULA!B18=0,"",MATRICULA!B18) -> GENERALES PÚBLICAS | B20: 184 | C20: 8.4 | F20: 8.2 | I20: 8.6 | L20: 8.4 | O20: 8.6 | R20: 8.6 | U20: 8.8 | X20: 9.5 | AA20: 8.9 | AD20: =IFERROR(ROUND(AVERAGE(C20:AC20),1),"") -> 8.7
A21: =IF(MATRICULA!B19=0,"",MATRICULA!B19) -> GENERALES PARTICULARES | B21: 94 | C21: 8.7 | F21: 8.5 | I21: 8.8 | L21: 8.7 | O21: 8.8 | R21: 8.8 | U21: 9.1 | X21: 9.7 | AA21: 9.4 | AD21: 8.9
A22: =IF(MATRICULA!B20=0,"",MATRICULA!B20) -> SEC TÉCNICAS | B22: 179 | C22: 8.4 | F22: 8.1 | I22: 8.4 | L22: 8.4 | O22: 8.4 | R22: 8.5 | U22: 8.6 | X22: 9.4 | AA22: 8.9 | AD22: 8.6
A23: =IF(MATRICULA!B21=0,"",MATRICULA!B21) -> TELESECUNDARIAS | B23: 104 | C23: 8.3 | F23: 8.1 | I23: 8.4 | L23: 8.3 | O23: 8.3 | R23: 8.6 | U23: 9.1 | X23: 9.3 | AA23: 9.1 | AD23: 8.6
A24: =IF(MATRICULA!B22=0,"",MATRICULA!B22) -> 
A25: Gral. | B25: =IF(SUM(B20:B24)=0,"",SUM(B20:B24)) -> 561 | C25: =IFERROR(ROUND(AVERAGE(C20:E24),1),"") -> 8.5 | F25: =IFERROR(ROUND(AVERAGE(F20:H24),1),"") -> 8.2 | I25: =IFERROR(ROUND(AVERAGE(I20:K24),1),"") -> 8.6 | L25: =IFERROR(ROUND(AVERAGE(L20:N24),1),"") -> 8.5 | O25: =IFERROR(ROUND(AVERAGE(O20:Q24),1),"") -> 8.5 | R25: =IFERROR(ROUND(AVERAGE(R20:T24),1),"") -> 8.6 | U25: =IFERROR(ROUND(AVERAGE(U20:W24),1),"") -> 8.9 | X25: =IFERROR(ROUND(AVERAGE(X20:Z24),1),"") -> 9.5 | AA25: =IFERROR(ROUND(AVERAGE(AA20:AC24),1),"") -> 9.1 | AD25: 8.7
A27: Campos de Formación Académica en situacion de riesgo de no acreditar | X27: Áreas de Desarrollo Personal y Social en situación de riesgo de no acreditar
A28: MODALIDAD | C28: Lengua Materna | F28: Matemáticas | I28: Inglés | L28: Ciencias y tecnología (Física) | O28: Historia | R28: Formación Cívica y Ética | U28: Tecnología II | X28: Educación Física | AA28: Artes | AD28: Total
C29: 5 | D29: 6 | E29: T | F29: 5 | G29: 6 | H29: T | I29: 5 | J29: 6 | K29: T | L29: 5 | M29: 6 | N29: T | O29: 5 | P29: 6 | Q29: T | R29: 5 | S29: 6 | T29: T | U29: 5 | V29: 6 | W29: T | X29: 5 | Y29: 6 | Z29: T | AA29: 5 | AB29: 6 | AC29: T | AD29: 5 | AE29: 6
A30: =IF(MATRICULA!B18=0,"",MATRICULA!B18) -> GENERALES PÚBLICAS | C30: 87 | D30: 570 | E30: =C30+D30 -> 657 | F30: 137 | G30: 695 | H30: =F30+G30 -> 832 | I30: 84 | J30: 457 | K30: =I30+J30 -> 541 | L30: 112 | M30: 688 | N30: =L30+M30 -> 800 | O30: 86 | P30: 566 | Q30: =O30+P30 -> 652 | R30: 77 | S30: 373 | T30: =R30+S30 -> 450 | U30: 87 | V30: 334 | W30: =U30+V30 -> 421 | X30: 18 | Y30: 74 | Z30: =X30+Y30 -> 92 | AA30: 51 | AB30: 306 | AC30: =AA30+AB30 -> 357 | AD30: =C30+F30+I30+L30+O30+R30+U30+X30+AA30 -> 739 | AE30: =D30+G30+J30+M30+P30+S30+V30+Y30+AB30 -> 4063
A31: =IF(MATRICULA!B19=0,"",MATRICULA!B19) -> GENERALES PARTICULARES | C31: 8 | D31: 38 | E31: =C31+D31 -> 46 | F31: 19 | G31: 93 | H31: =F31+G31 -> 112 | I31: 5 | J31: 52 | K31: =I31+J31 -> 57 | L31: 10 | M31: 84 | N31: =L31+M31 -> 94 | O31: 8 | P31: 39 | Q31: =O31+P31 -> 47 | R31: 8 | S31: 61 | T31: =R31+S31 -> 69 | U31: 3 | V31: 42 | W31: =U31+V31 -> 45 | X31: 0 | Y31: 14 | Z31: =X31+Y31 -> 14 | AA31: 1 | AB31: 28 | AC31: =AA31+AB31 -> 29 | AD31: =C31+F31+I31+L31+O31+R31+U31+X31+AA31 -> 62 | AE31: =D31+G31+J31+M31+P31+S31+V31+Y31+AB31 -> 451
A32: =IF(MATRICULA!B20=0,"",MATRICULA!B20) -> SEC TÉCNICAS | C32: 188 | D32: 533 | E32: =IF(SUM(C32,D32)=0,"",SUM(C32,D32)) -> 721 | F32: 182 | G32: 803 | H32: =IF(SUM(F32,G32)=0,"",SUM(F32,G32)) -> 985 | I32: 107 | J32: 606 | K32: =IF(SUM(I32,J32)=0,"",SUM(I32,J32)) -> 713 | L32: 120 | M32: 620 | N32: =IF(SUM(L32,M32)=0,"",SUM(L32,M32)) -> 740 | O32: 155 | P32: 575 | Q32: =IF(SUM(O32,P32)=0,"",SUM(O32,P32)) -> 730 | R32: 76 | S32: 580 | T32: =IF(SUM(R32,S32)=0,"",SUM(R32,S32)) -> 656 | U32: 78 | V32: 417 | W32: =IF(SUM(U32,V32)=0,"",SUM(U32,V32)) -> 495 | X32: 14 | Y32: 87 | Z32: =IF(SUM(X32,Y32)=0,"",SUM(X32,Y32)) -> 101 | AA32: 52 | AB32: 250 | AC32: =IF(SUM(AA32,AB32)=0,"",SUM(AA32,AB32)) -> 302 | AD32: =IF(SUM(C32,F32,I32,L32,O32,R32,U32,X32,AA32)=0,"",SUM(C32,F32,I32,L32,O32,R32,U32,X32,AA32)) -> 972 | AE32: 4471
A33: =IF(MATRICULA!B21=0,"",MATRICULA!B21) -> TELESECUNDARIAS | C33: 64 | D33: 272 | E33: =IF(SUM(C33,D33)=0,"",SUM(C33,D33)) -> 336 | F33: 80 | G33: 323 | H33: =IF(SUM(F33,G33)=0,"",SUM(F33,G33)) -> 403 | I33: 61 | J33: 285 | K33: =IF(SUM(I33,J33)=0,"",SUM(I33,J33)) -> 346 | L33: 69 | M33: 327 | N33: =IF(SUM(L33,M33)=0,"",SUM(L33,M33)) -> 396 | O33: 67 | P33: 303 | Q33: =IF(SUM(O33,P33)=0,"",SUM(O33,P33)) -> 370 | R33: 63 | S33: 200 | T33: =IF(SUM(R33,S33)=0,"",SUM(R33,S33)) -> 263 | U33: 66 | V33: 166 | W33: =IF(SUM(U33,V33)=0,"",SUM(U33,V33)) -> 232 | X33: 38 | Y33: 54 | Z33: =IF(SUM(X33,Y33)=0,"",SUM(X33,Y33)) -> 92 | AA33: 63 | AB33: 139 | AC33: =IF(SUM(AA33,AB33)=0,"",SUM(AA33,AB33)) -> 202 | AD33: 571 | AE33: 2069
A34: =IF(MATRICULA!B22=0,"",MATRICULA!B22) ->  | E34: =IF(SUM(C34,D34)=0,"",SUM(C34,D34)) ->  | H34: =IF(SUM(F34,G34)=0,"",SUM(F34,G34)) ->  | K34: =IF(SUM(I34,J34)=0,"",SUM(I34,J34)) ->  | N34: =IF(SUM(L34,M34)=0,"",SUM(L34,M34)) ->  | Q34: =IF(SUM(O34,P34)=0,"",SUM(O34,P34)) ->  | T34: =IF(SUM(R34,S34)=0,"",SUM(R34,S34)) ->  | W34: =IF(SUM(U34,V34)=0,"",SUM(U34,V34)) ->  | Z34: =IF(SUM(X34,Y34)=0,"",SUM(X34,Y34)) ->  | AC34: =IF(SUM(AA34,AB34)=0,"",SUM(AA34,AB34)) -> 
A35: Total | C35: =IF(SUM(C30:C34)=0,"",SUM(C30:C34)) -> 347 | D35: 1413 | E35: 1760 | F35: 418 | G35: 1914 | H35: 2332 | I35: 257 | J35: 1400 | K35: 1657 | L35: 311 | M35: 1719 | N35: 2030 | O35: 316 | P35: 1483 | Q35: 1799 | R35: 224 | S35: 1214 | T35: 1438 | U35: 234 | V35: 959 | W35: 1193 | X35: 70 | Y35: 229 | Z35: 299 | AA35: 167 | AB35: 723 | AC35: 890 | AD35: 2344 | AE35: 11054
A37: Nota: Para las columnas "Campos de Formación Académica y Áreas de Desarrollo Personal y Social en riesgo de no acreditar" registre la cantidad de cincos o seis que existen en cada campo o área.

Sheet Gráfica APROV 2
B3: Secretaría de Educación Pública del Estado de Baja California Sur
B4: Dirección de Educación Secundaria
B5: SEGUNDO GRADO
B6: PERIODO EVALUACIÓN: | N6: =MATRICULA!O7 -> CONCENTRADO CIERRE CICLO ESCOLAR
B7: CICLO ESCOLAR : | N7: =MATRICULA!O8 -> 2022-2023
J9: =MATRICULA!I11 -> MTRA. OFELIA ELIZABETH OCHOA ROMERO
J10: =MATRICULA!I12 -> DIRECCIÓN DE EDUCACIÓN SECUNDARIA
B12: Lengua Materna | C12: Matemáticas | D12: Inglés | E12: Ciencias y tecnología (Física) | F12: Historia | G12: Formación Cívica y Ética | H12: Tecnología II | I12: Educación Física | J12: Artes
B13: ='APROV 2'!C25 -> 8.5 | C13: ='APROV 2'!F25 -> 8.2 | D13: ='APROV 2'!I25 -> 8.6 | E13: ='APROV 2'!L25 -> 8.5 | F13: ='APROV 2'!O25 -> 8.5 | G13: ='APROV 2'!R25 -> 8.6 | H13: ='APROV 2'!U25 -> 8.9 | I13: ='APROV 2'!X25 -> 9.5 | J13: ='APROV 2'!AA25 -> 9.1

Sheet R2
B3: Secretaría de Educación Pública del Estado de Baja California Sur
B4: Dirección de Educación Secundaria
B6: REGISTRO DE ALUMNOS CON CALIFICACIÓN "5 Y 6" EN UNA O MÁS ASIGNATURAS
B7: PRIMER GRADO
C9: PERIODO DE EVALUACIÓN: | E9: CONCENTRADO CIERRE CICLO ESCOLAR
C10: CICLO ESCOLAR: | E10: =[1]MATRICULA!O8 -> 2022-2023
C12: =MATRICULA!I11 -> MTRA. OFELIA ELIZABETH OCHOA ROMERO
C13: =MATRICULA!I12 -> DIRECCIÓN DE EDUCACIÓN SECUNDARIA
A15: REGISTRAR LA CANTIDAD DE ALUMNOS CON CALIFICACIÓN "5 Y 6" EN UNA O MÁS ASIGNATURAS SEGÚN CORRESPONDA
A16: MODALIDAD | B16: 1 ASIGNATURA | C16: 2 ASIGNATURAS | D16: 3 ASIGNATURAS | E16: 4 ASIGNATURAS | F16: 5 ASIGNATURAS | G16: 6 O MÁS ASIGNATURAS | H16: TOTAL
A17: =MATRICULA!B18 -> GENERALES PÚBLICAS | B17: 622 | C17: 372 | D17: 268 | E17: 264 | F17: 188 | G17: 255 | H17: =SUM(B17:G17) -> 1969
A18: =MATRICULA!B19 -> GENERALES PARTICULARES | B18: 76 | C18: 59 | D18: 29 | E18: 18 | F18: 5 | G18: 17 | H18: =SUM(B18:G18) -> 204
A19: =MATRICULA!B20 -> SEC TÉCNICAS | B19: 557 | C19: 351 | D19: 220 | E19: 184 | F19: 127 | G19: 336 | H19: =SUM(B19:G19) -> 1775
A20: TELESECUNDARIAS | B20: 153 | C20: 72 | D20: 65 | E20: 49 | F20: 69 | G20: 122 | H20: =SUM(B20:G20) -> 530
A22: TOTAL | B22: =IF(SUM(B17:B21)=0,"",SUM(B17:B21)) -> 1408 | C22: 854 | D22: 582 | E22: 515 | F22: 389 | G22: 730 | H22: 4478

Sheet Gráfica R2
B3: Secretaría de Educación Pública del Estado de Baja California Sur
B4: Dirección de Educación Secundaria
B5: PRIMER GRADO
N6: =[1]MATRICULA!O7 -> CIERRE DE CICLO ESCOLAR 2022-2023
B7: PERIODO EVALUACIÓN:
B8: CICLO ESCOLAR : | N8: =[1]MATRICULA!O8 -> 2022-2023
J10: =MATRICULA!I11 -> MTRA. OFELIA ELIZABETH OCHOA ROMERO
J11: =MATRICULA!I12 -> DIRECCIÓN DE EDUCACIÓN SECUNDARIA
B17: =[1]R1!B16 -> 1 ASIGNATURA | C17: ='R2'!B16 -> 1 ASIGNATURA | D17: ='R2'!C16 -> 2 ASIGNATURAS | E17: ='R2'!D16 -> 3 ASIGNATURAS | F17: ='R2'!E16 -> 4 ASIGNATURAS | G17: ='R2'!F16 -> 5 ASIGNATURAS | H17: ='R2'!G16 -> 6 O MÁS ASIGNATURAS
B18: =[1]R1!B17 -> 59 | C18: ='R2'!B22 -> 1408 | D18: ='R2'!C22 -> 854 | E18: ='R2'!D22 -> 582 | F18: ='R2'!E22 -> 515 | G18: ='R2'!F22 -> 389 | H18: ='R2'!G22 -> 730 | I18: ='[2]APROV 1'!X38 ->  | J18: ='[2]APROV 1'!AA38 ->  | K18: ='[2]APROV 1'!AD38 -> 

Sheet APROV 3
C3: Secretaría de Educación Pública del Estado de Baja California Sur
C4: Dirección de Educación Secundaria
C5: APROVECHAMIENTO Y RIESGO DE NO ACREDITAR
C6: TERCER GRADO
C7: PERIODO EVALUACIÓN: | O7: =IF('APROV 1'!O7:AA7<>0,'APROV 1'!O7:AA7, "") -> CONCENTRADO CIERRE CICLO ESCOLAR
C8: CICLO ESCOLAR : | O8: =IF('APROV 1'!O8:AA8<>0, 'APROV 1'!O8:AA8, "") -> 2022-2023
I10: =MATRICULA!I11 -> MTRA. OFELIA ELIZABETH OCHOA ROMERO
I11: =MATRICULA!I12 -> DIRECCIÓN DE EDUCACIÓN SECUNDARIA
A13: Promedio de Aprovechamiento de los Campos de Formación Académica | X13: Promedio de Aprovechamiento de las Áreas de Desarrollo Personal y Social | AD13: Prom. Final
A14: MODALIDAD | B14: GRUPOS | C14: Español III | F14: Matemáticas III | I14: Segunda Lengua: Inglés III | L14: Ciencias III (Énfasis en Química) | O14: Historia II | R14: Formación Cívica y Ética II | U14: Tecnología III | X14: Educación Física III | AA14: Artes III
C15: CALIF | F15: CALIF | I15: CALIF | L15: CALIF | O15: CALIF | R15: CALIF | U15: CALIF | X15: CALIF | AA15: CALIF | AD15: CALIF
A16: =IF(MATRICULA!B18=0,"",MATRICULA!B18) -> GENERALES PÚBLICAS | B16: 185 | C16: 8.6 | F16: 8.3 | I16: 8.7 | L16: 8.6 | O16: 8.7 | R16: 8.7 | U16: 8.9 | X16: 9.5 | AA16: 9 | AD16: =IFERROR(ROUND(AVERAGE(C16:AC16),1),"") -> 8.8
A17: =IF(MATRICULA!B19=0,"",MATRICULA!B19) -> GENERALES PARTICULARES | B17: 92 | C17: 8.7 | F17: 8.6 | I17: 8.9 | L17: 8.7 | O17: 8.9 | R17: 8.9 | U17: 9.3 | X17: 9.7 | AA17: 9.5 | AD17: 9
A18: =IF(MATRICULA!B20=0,"",MATRICULA!B20) -> SEC TÉCNICAS | B18: 291 | C18: 8.5 | F18: 8.3 | I18: 8.5 | L18: 8.5 | O18: 8.5 | R18: 8.6 | U18: 8.8 | X18: 9.4 | AA18: 9 | AD18: 8.7
A19: =IF(MATRICULA!B21=0,"",MATRICULA!B21) -> TELESECUNDARIAS | B19: 103 | C19: 8.5 | F19: 8.3 | I19: 8.5 | L19: 8.4 | O19: 8.5 | R19: 8.8 | U19: 9.1 | X19: 9.3 | AA19: 9.2 | AD19: 8.7
A20: =IF(MATRICULA!B22=0,"",MATRICULA!B22) -> 
A21: Gral. | B21: =IF(SUM(B16:B20)=0,"",SUM(B16:B20)) -> 671 | C21: =IFERROR(ROUND(AVERAGE(C16:E20),1),"") -> 8.6 | F21: =IFERROR(ROUND(AVERAGE(F16:H20),1),"") -> 8.4 | I21: =IFERROR(ROUND(AVERAGE(I16:K20),1),"") -> 8.7 | L21: =IFERROR(ROUND(AVERAGE(L16:N20),1),"") -> 8.6 | O21: =IFERROR(ROUND(AVERAGE(O16:Q20),1),"") -> 8.7 | R21: =IFERROR(ROUND(AVERAGE(R16:T20),1),"") -> 8.8 | U21: =IFERROR(ROUND(AVERAGE(U16:W20),1),"") -> 9 | X21: =IFERROR(ROUND(AVERAGE(X16:Z20),1),"") -> 9.5 | AA21: =IFERROR(ROUND(AVERAGE(AA16:AC20),1),"") -> 9.2 | AD21: 8.8
A23: Campos de Formación Académica en situacion de riesgo de no acreditar | X23: Áreas de Desarrollo Personal y Social en situación de riesgo de no acreditar
A24: MODALIDAD | C24: Español III | F24: Matemáticas III | I24: Segunda Lengua: Inglés III | L24: Ciencias III (Énfasis en Química) | O24: Historia II | R24: Formación Cívica y Ética II | U24: Tecnología III | X24: Educación Física III | AA24: Artes III | AD24: Total
C25: 5 | D25: 6 | E25: T | F25: 5 | G25: 6 | H25: T | I25: 5 | J25: 6 | K25: T | L25: 5 | M25: 6 | N25: T | O25: 5 | P25: 6 | Q25: T | R25: 5 | S25: 6 | T25: T | U25: 5 | V25: 6 | W25: T | X25: 5 | Y25: 6 | Z25: T | AA25: 5 | AB25: 6 | AC25: T | AD25: 5 | AE25: 6
A26: =IF(MATRICULA!B18=0,"",MATRICULA!B18) -> GENERALES PÚBLICAS | C26: 121 | D26: 590 | E26: =C26+D26 -> 711 | F26: 111 | G26: 848 | H26: =F26+G26 -> 959 | I26: 91 | J26: 434 | K26: =I26+J26 -> 525 | L26: 103 | M26: 561 | N26: =L26+M26 -> 664 | O26: 93 | P26: 419 | Q26: =O26+P26 -> 512 | R26: 66 | S26: 406 | T26: =R26+S26 -> 472 | U26: 72 | V26: 326 | W26: =U26+V26 -> 398 | X26: 29 | Y26: 105 | Z26: =X26+Y26 -> 134 | AA26: 58 | AB26: 395 | AC26: =AA26+AB26 -> 453 | AD26: =C26+F26+I26+L26+O26+R26+U26+X26+AA26 -> 744 | AE26: =D26+G26+J26+M26+P26+S26+V26+Y26+AB26 -> 4084
A27: =IF(MATRICULA!B19=0,"",MATRICULA!B19) -> GENERALES PARTICULARES | C27: 9 | D27: 48 | E27: =C27+D27 -> 57 | F27: 12 | G27: 86 | H27: =F27+G27 -> 98 | I27: 3 | J27: 46 | K27: =I27+J27 -> 49 | L27: 3 | M27: 70 | N27: =L27+M27 -> 73 | O27: 5 | P27: 38 | Q27: =O27+P27 -> 43 | R27: 3 | S27: 38 | T27: =R27+S27 -> 41 | U27: 3 | V27: 36 | W27: =U27+V27 -> 39 | X27: 1 | Y27: 7 | Z27: =X27+Y27 -> 8 | AA27: 6 | AB27: 20 | AC27: =AA27+AB27 -> 26 | AD27: =C27+F27+I27+L27+O27+R27+U27+X27+AA27 -> 45 | AE27: =D27+G27+J27+M27+P27+S27+V27+Y27+AB27 -> 389
A28: =IF(MATRICULA!B20=0,"",MATRICULA!B20) -> SEC TÉCNICAS | C28: 106 | D28: 398 | E28: =IF(SUM(C28,D28)=0,"",SUM(C28,D28)) -> 504 | F28: 153 | G28: 664 | H28: =IF(SUM(F28,G28)=0,"",SUM(F28,G28)) -> 817 | I28: 76 | J28: 523 | K28: =IF(SUM(I28,J28)=0,"",SUM(I28,J28)) -> 599 | L28: 108 | M28: 641 | N28: =IF(SUM(L28,M28)=0,"",SUM(L28,M28)) -> 749 | O28: 152 | P28: 484 | Q28: =IF(SUM(O28,P28)=0,"",SUM(O28,P28)) -> 636 | R28: 87 | S28: 462 | T28: =IF(SUM(R28,S28)=0,"",SUM(R28,S28)) -> 549 | U28: 107 | V28: 334 | W28: =IF(SUM(U28,V28)=0,"",SUM(U28,V28)) -> 441 | X28: 32 | Y28: 66 | Z28: =IF(SUM(X28,Y28)=0,"",SUM(X28,Y28)) -> 98 | AA28: 62 | AB28: 212 | AC28: =IF(SUM(AA28,AB28)=0,"",SUM(AA28,AB28)) -> 274 | AD28: =IF(SUM(C28,F28,I28,L28,O28,R28,U28,X28,AA28)=0,"",SUM(C28,F28,I28,L28,O28,R28,U28,X28,AA28)) -> 883 | AE28: 3784
A29: =IF(MATRICULA!B21=0,"",MATRICULA!B21) -> TELESECUNDARIAS | C29: 43 | D29: 192 | E29: =IF(SUM(C29,D29)=0,"",SUM(C29,D29)) -> 235 | F29: 47 | G29: 239 | H29: =IF(SUM(F29,G29)=0,"",SUM(F29,G29)) -> 286 | I29: 45 | J29: 195 | K29: =IF(SUM(I29,J29)=0,"",SUM(I29,J29)) -> 240 | L29: 54 | M29: 216 | N29: =IF(SUM(L29,M29)=0,"",SUM(L29,M29)) -> 270 | O29: 53 | P29: 178 | Q29: =IF(SUM(O29,P29)=0,"",SUM(O29,P29)) -> 231 | R29: 47 | S29: 160 | T29: =IF(SUM(R29,S29)=0,"",SUM(R29,S29)) -> 207 | U29: 30 | V29: 136 | W29: =IF(SUM(U29,V29)=0,"",SUM(U29,V29)) -> 166 | X29: 17 | Y29: 39 | Z29: =IF(SUM(X29,Y29)=0,"",SUM(X29,Y29)) -> 56 | AA29: 42 | AB29: 91 | AC29: =IF(SUM(AA29,AB29)=0,"",SUM(AA29,AB29)) -> 133 | AD29: 378 | AE29: 1446
A30: =IF(MATRICULA!B22=0,"",MATRICULA!B22) ->  | E30: =IF(SUM(C30,D30)=0,"",SUM(C30,D30)) ->  | H30: =IF(SUM(F30,G30)=0,"",SUM(F30,G30)) ->  | K30: =IF(SUM(I30,J30)=0,"",SUM(I30,J30)) ->  | N30: =IF(SUM(L30,M30)=0,"",SUM(L30,M30)) ->  | Q30: =IF(SUM(O30,P30)=0,"",SUM(O30,P30)) ->  | T30: =IF(SUM(R30,S30)=0,"",SUM(R30,S30)) ->  | W30: =IF(SUM(U30,V30)=0,"",SUM(U30,V30)) ->  | Z30: =IF(SUM(X30,Y30)=0,"",SUM(X30,Y30)) ->  | AC30: =IF(SUM(AA30,AB30)=0,"",SUM(AA30,AB30)) -> 
A31: Total | C31: =IF(SUM(C26:C30)=0,"",SUM(C26:C30)) -> 279 | D31: 1228 | E31: 1507 | F31: 323 | G31: 1837 | H31: 2160 | I31: 215 | J31: 1198 | K31: 1413 | L31: 268 | M31: 1488 | N31: 1756 | O31: 303 | P31: 1119 | Q31: 1422 | R31: 203 | S31: 1066 | T31: 1269 | U31: 212 | V31: 832 | W31: 1044 | X31: 79 | Y31: 217 | Z31: 296 | AA31: 168 | AB31: 718 | AC31: 886 | AD31: 2050 | AE31: 9703
A32: Nota: Para las columnas "Campos de Formación Académica y Áreas de Desarrollo Personal y Social en riesgo de no acreditar" registre la cantidad de cincos o seis que existen en cada campo o área.

Sheet Gráfica APROV 3
B3: Secretaría de Educación Pública del Estado de Baja California Sur
B4: Dirección de Educación Secundaria
B5: TERCER GRADO
B6: PERIODO EVALUACIÓN: | N6: =MATRICULA!O7 -> CONCENTRADO CIERRE CICLO ESCOLAR
B7: CICLO ESCOLAR : | N7: =MATRICULA!O8 -> 2022-2023
J9: =MATRICULA!I11 -> MTRA. OFELIA ELIZABETH OCHOA ROMERO
J10: =MATRICULA!I12 -> DIRECCIÓN DE EDUCACIÓN SECUNDARIA
B12: Español III | C12: Matemáticas III | D12: Segunda Lengua: Inglés III | E12: Ciencias III (Énfasis en Química) | F12: Historia II | G12: Formación Cívica y Ética II | H12: Tecnología III | I12: Educación Física III | J12: Artes III
B13: ='APROV 3'!C21 -> 8.6 | C13: ='APROV 3'!F21 -> 8.4 | D13: ='APROV 3'!I21 -> 8.7 | E13: ='APROV 3'!L21 -> 8.6 | F13: ='APROV 3'!O21 -> 8.7 | G13: ='APROV 3'!R21 -> 8.8 | H13: ='APROV 3'!U21 -> 9 | I13: ='APROV 3'!X21 -> 9.5 | J13: ='APROV 3'!AA21 -> 9.2

Sheet R3
B3: Secretaría de Educación Pública del Estado de Baja California Sur
B4: Dirección de Educación Secundaria
B6: REGISTRO DE ALUMNOS CON CALIFICACIÓN "5 Y 6" EN UNA O MÁS ASIGNATURAS
B7: PRIMER GRADO
C9: PERIODO DE EVALUACIÓN: | E9: CONCENTRADO CIERRE CICLO ESCOLAR
C10: CICLO ESCOLAR: | E10: =[1]MATRICULA!O8 -> 2022-2023
C12: =MATRICULA!I11 -> MTRA. OFELIA ELIZABETH OCHOA ROMERO
C13: =MATRICULA!I12 -> DIRECCIÓN DE EDUCACIÓN SECUNDARIA
A15: REGISTRAR LA CANTIDAD DE ALUMNOS CON CALIFICACIÓN "5 Y 6" EN UNA O MÁS ASIGNATURAS SEGÚN CORRESPONDA
A16: MODALIDAD | B16: 1 ASIGNATURA | C16: 2 ASIGNATURAS | D16: 3 ASIGNATURAS | E16: 4 ASIGNATURAS | F16: 5 ASIGNATURAS | G16: 6 O MÁS ASIGNATURAS | H16: TOTAL
A17: =MATRICULA!B18 -> GENERALES PÚBLICAS | B17: 544 | C17: 324 | D17: 228 | E17: 203 | F17: 134 | G17: 227 | H17: =SUM(B17:G17) -> 1660
A18: =MATRICULA!B19 -> GENERALES PARTICULARES | B18: 144 | C18: 60 | D18: 43 | E18: 29 | F18: 17 | G18: 19 | H18: =SUM(B18:G18) -> 312
A19: =MATRICULA!B20 -> SEC TÉCNICAS | B19: 510 | C19: 242 | D19: 181 | E19: 198 | F19: 97 | G19: 337 | H19: =SUM(B19:G19) -> 1565
A20: TELESECUNDARIAS | B20: 81 | C20: 66 | D20: 20 | E20: 28 | F20: 26 | G20: 74 | H20: =SUM(B20:G20) -> 295
H21: =SUM(B21:G21) -> 0
A22: TOTAL | B22: =IF(SUM(B17:B21)=0,"",SUM(B17:B21)) -> 1279 | C22: 692 | D22: 472 | E22: 458 | F22: 274 | G22: 657 | H22: 3832

Sheet Gráfica R3
B3: Secretaría de Educación Pública del Estado de Baja California Sur
B4: Dirección de Educación Secundaria
B5: PRIMER GRADO
N6: =[1]MATRICULA!O7 -> CIERRE DE CICLO ESCOLAR 2022-2023
B7: PERIODO EVALUACIÓN:
B8: CICLO ESCOLAR : | N8: =[1]MATRICULA!O8 -> 2022-2023
J10: =MATRICULA!I11 -> MTRA. OFELIA ELIZABETH OCHOA ROMERO
J11: =MATRICULA!I12 -> DIRECCIÓN DE EDUCACIÓN SECUNDARIA
B17: =[1]R1!B16 -> 1 ASIGNATURA | C17: ='R3'!B16 -> 1 ASIGNATURA | D17: ='R3'!C16 -> 2 ASIGNATURAS | E17: ='R3'!D16 -> 3 ASIGNATURAS | F17: ='R3'!E16 -> 4 ASIGNATURAS | G17: ='R3'!F16 -> 5 ASIGNATURAS | H17: ='R3'!G16 -> 6 O MÁS ASIGNATURAS
B18: =[1]R1!B17 -> 59 | C18: ='R3'!B22 -> 1279 | D18: ='R3'!C22 -> 692 | E18: ='R3'!D22 -> 472 | F18: ='R3'!E22 -> 458 | G18: ='R3'!F22 -> 274 | H18: ='R3'!G22 -> 657

Sheet Gráfica Promedios Finales
B3: Secretaría de Educación Pública del Estado de Baja California Sur
B4: Dirección de Educación Secundaria
B5: PERIODO DE EVALUACIÓN: | N5: =MATRICULA!O7 -> CONCENTRADO CIERRE CICLO ESCOLAR
B6: CICLO ESCOLAR : | N6: =MATRICULA!O8 -> 2022-2023
I8: =MATRICULA!I11 -> MTRA. OFELIA ELIZABETH OCHOA ROMERO
I9: =MATRICULA!I12 -> DIRECCIÓN DE EDUCACIÓN SECUNDARIA
B14: PROMEDIO 1RO | C14: PROMEDIO 2DO | D14: PROMEDIO 3ERO
B15: =+'APROV 1'!AG21 -> 8.7 | C15: =+'APROV 2'!AD25 -> 8.7 | D15: ='APROV 3'!AD21 -> 8.8

Sheet NORMALIDAD MÍNIMA
B3: Secretaría de Educación Pública del Estado de Baja California Sur
B4: Dirección de Educación Secundaria
B5: NORMALIDAD MÍNIMA
B6: PERIODO DE EVALUACIÓN: | K6: =IF('APROV 1'!O7<>0,'APROV 1'!O7, "") -> CONCENTRADO CIERRE CICLO ESCOLAR
B7: CICLO ESCOLAR : | K7: =IF('APROV 1'!O8<>0, 'APROV 1'!O8, "") -> 2022-2023
G9: =MATRICULA!I11 -> MTRA. OFELIA ELIZABETH OCHOA ROMERO
G10: =MATRICULA!I12 -> DIRECCIÓN DE EDUCACIÓN SECUNDARIA
A12: MODALIDAD | B12: DIRECTIVOS Directores | D12: DIRECTIVOS Subdirectores | G12: COORDINADORES | J12: R | K12: INASISTENCIAS | N12: LICENCIAS ECONÓMICAS | P12: LICENCIAS MÉDICAS | R12: TOTAL DE DÍAS NO LABORADOS
B13: H | C13: M | D13: H | E13: M | F13: T | G13: H | H13: M | I13: T | K13: I | L13: P.D. | M13: D.N.L.I y P.D. | N13: L.E. | O13: D.N.L.E. | P13: L.M. | Q13: D.N.L.M. | R13: DNLI y PD, DNLE, DNLM
A14: =IF(MATRICULA!B18=0,"",MATRICULA!B18) -> GENERALES PÚBLICAS | B14: 33 | C14: 10 | D14: 18 | E14: 19 | F14: =IF(SUM(B14:E14)=0,"",SUM(B14:E14)) -> 80 | G14: 18 | H14: 15 | I14: =IF(SUM(G14,H14)=0,"",SUM(G14,H14)) -> 33 | J14: 14 | K14: 3 | L14: 66 | M14: =K14+L14 -> 69 | N14: 114 | O14: 246 | P14: 95 | Q14: 564 | R14: =IF(SUM(M14,O14,Q14)=0,"",SUM(M14,O14,Q14)) -> 879
A15: =IF(MATRICULA!B19=0,"",MATRICULA!B19) -> GENERALES PARTICULARES | F15: =IF(SUM(B15:E15)=0,"",SUM(B15:E15)) ->  | I15: =IF(SUM(G15,H15)=0,"",SUM(G15,H15)) ->  | R15: =IF(SUM(M15,O15,Q15)=0,"",SUM(M15,O15,Q15)) -> 
A16: =IF(MATRICULA!B20=0,"",MATRICULA!B20) -> SEC TÉCNICAS | B16: 18 | C16: 13 | D16: 20 | E16: 10 | F16: =IF(SUM(B16:E16)=0,"",SUM(B16:E16)) -> 61 | G16: 29 | H16: 20 | I16: =IF(SUM(G16,H16)=0,"",SUM(G16,H16)) -> 49 | K16: 7 | L16: 26 | M16: =K16+L16 -> 33 | N16: 75 | O16: 202 | P16: 38 | Q16: 238 | R16: =IF(SUM(M16,O16,Q16)=0,"",SUM(M16,O16,Q16)) -> 473
A17: =IF(MATRICULA!B21=0,"",MATRICULA!B21) -> TELESECUNDARIAS | B17: 17 | C17: 6 | D17: 10 | E17: 3 | F17: =IF(SUM(B17:E17)=0,"",SUM(B17:E17)) -> 36 | I17: =IF(SUM(G17,H17)=0,"",SUM(G17,H17)) ->  | L17: 125 | M17: =K17+L17 -> 125 | N17: 43 | O17: 113 | P17: 8 | Q17: 35 | R17: =IF(SUM(M17,O17,Q17)=0,"",SUM(M17,O17,Q17)) -> 273
A18: =IF(MATRICULA!B22=0,"",MATRICULA!B22) ->  | F18: =IF(SUM(B18:E18)=0,"",SUM(B18:E18)) ->  | I18: =IF(SUM(G18,H18)=0,"",SUM(G18,H18)) ->  | M18: =IF(SUM(K18,L18)=0,"",SUM(K18,L18)) ->  | R18: =IF(SUM(M18,O18,Q18)=0,"",SUM(M18,O18,Q18)) -> 
A19: Total | B19: =IF(SUM(B14:B18)=0,"",SUM(B14:B18)) -> 68 | C19: 29 | D19: 48 | E19: 32 | F19: 177 | G19: 47 | H19: 35 | I19: 82 | J19: 14 | K19: 10 | L19: 217 | M19: 227 | N19: 232 | O19: 561 | P19: 141 | Q19: 837 | R19: 1625
A21: MODALIDAD | B21: PERSONAL POR HORAS | G21: DOCENTES | J21: R | K21: INASISTENCIAS (Horas) | N21: LICENCIAS ECONÓMICAS | P21: LICENCIAS MÉDICAS | R21: TOTAL DE HORAS NO LABORADOS
G22: F | H22: E | I22: T | K22: I | L22: P.D. | M22: H.N.L.I y P.D. | N22: L.E. | O22: H.N.L.E. | P22: L.M. | Q22: H.N.L.M. | R22: HNLI y PD, HNLE, HNLM
A23: =IF(MATRICULA!B18=0,"",MATRICULA!B18) -> GENERALES PÚBLICAS | G23: 1072 | H23: 114 | I23: =IF(SUM(G23,H23)=0,"",SUM(G23,H23)) -> 1186 | J23: 1865 | K23: 6051 | L23: 1661 | M23: =IF(SUM(K23,L23)=0,"",SUM(K23,L23)) -> 7712 | N23: 1814 | O23: 15326 | P23: 1074 | Q23: 12364 | R23: =IF(SUM(M23,O23,Q23)=0,"",SUM(M23,O23,Q23)) -> 35402
A24: =IF(MATRICULA!B19=0,"",MATRICULA!B19) -> GENERALES PARTICULARES | I24: =IF(SUM(G24,H24)=0,"",SUM(G24,H24)) ->  | M24: =IF(SUM(K24,L24)=0,"",SUM(K24,L24)) ->  | R24: =IF(SUM(M24,O24,Q24)=0,"",SUM(M24,O24,Q24)) -> 
A25: =IF(MATRICULA!B20=0,"",MATRICULA!B20) -> SEC TÉCNICAS | G25: 739 | H25: 146 | I25: =IF(SUM(G25,H25)=0,"",SUM(G25,H25)) -> 885 | J25: 740 | K25: 3769 | L25: 1591 | M25: =IF(SUM(K25,L25)=0,"",SUM(K25,L25)) -> 5360 | N25: 1162 | O25: 11129 | P25: 596 | Q25: 9809 | R25: =IF(SUM(M25,O25,Q25)=0,"",SUM(M25,O25,Q25)) -> 26298
A26: =IF(MATRICULA!B21=0,"",MATRICULA!B21) -> TELESECUNDARIAS | G26: 238 | H26: 41 | I26: =IF(SUM(G26,H26)=0,"",SUM(G26,H26)) -> 279 | K26: 12 | M26: =IF(SUM(K26,L26)=0,"",SUM(K26,L26)) -> 12 | N26: 395 | O26: 2681 | P26: 166 | Q26: 1132 | R26: =IF(SUM(M26,O26,Q26)=0,"",SUM(M26,O26,Q26)) -> 3825
A27: =IF(MATRICULA!B22=0,"",MATRICULA!B22) ->  | I27: =IF(SUM(G27,H27)=0,"",SUM(G27,H27)) ->  | M27: =IF(SUM(K27,L27)=0,"",SUM(K27,L27)) ->  | R27: =IF(SUM(M27,O27,Q27)=0,"",SUM(M27,O27,Q27)) -> 
A28: Total | G28: =IF(SUM(G23:G27)=0,"",SUM(G23:G27)) -> 2049 | H28: 301 | I28: 2350 | J28: 2605 | K28: 9832 | L28: 3252 | M28: 13084 | N28: 3371 | O28: 29136 | P28: 1836 | Q28: 23305 | R28: 65525
A30: MODALIDAD | B30: ASISTENCIA EDUCATIVA (Psicólogos, trabajo social, médicos, prefectos) | G30: ADMINISTRATIVO Y DE APOYO | J30: R | K30: INASISTENCIAS | N30: LICENCIAS ECONÓMICAS | P30: LICENCIAS MÉDICAS | R30: TOTAL DE DÍAS NO LABORADOS
B31: F | D31: E | F31: T | G31: F | H31: E | I31: T | K31: I | L31: P.D. | M31: D.N.L.I y P.D. | N31: L.E. | O31: D.N.L.E. | P31: L.M. | Q31: D.N.L.M. | R31: DNLI y PD, DNLE, DNLM
A32: =IF(MATRICULA!B18=0,"",MATRICULA!B18) -> GENERALES PÚBLICAS | B32: 170 | D32: 47 | F32: =IF(SUM(B32:E32)=0,"",SUM(B32:E32)) -> 217 | G32: 325 | H32: 179 | I32: =IF(SUM(G32,H32)=0,"",SUM(G32,H32)) -> 504 | J32: 675 | K32: 658 | L32: 157 | M32: =IF(SUM(K32,L32)=0,"",SUM(K32,L32)) -> 815 | N32: 999 | O32: 2777 | P32: 382 | Q32: 2334 | R32: =IF(SUM(M32,O32,Q32)=0,"",SUM(M32,O32,Q32)) -> 5926
A33: =IF(MATRICULA!B19=0,"",MATRICULA!B19) -> GENERALES PARTICULARES | F33: =IF(SUM(B33:E33)=0,"",SUM(B33:E33)) ->  | I33: =IF(SUM(G33,H33)=0,"",SUM(G33,H33)) ->  | M33: =IF(SUM(K33,L33)=0,"",SUM(K33,L33)) ->  | R33: =IF(SUM(M33,O33,Q33)=0,"",SUM(M33,O33,Q33)) -> 
A34: =IF(MATRICULA!B20=0,"",MATRICULA!B20) -> SEC TÉCNICAS | B34: 132 | D34: 44 | F34: =IF(SUM(B34:E34)=0,"",SUM(B34:E34)) -> 176 | G34: 207 | H34: 117 | I34: =IF(SUM(G34,H34)=0,"",SUM(G34,H34)) -> 324 | J34: 60 | K34: 517 | L34: 206 | M34: =IF(SUM(K34,L34)=0,"",SUM(K34,L34)) -> 723 | N34: 650 | O34: 1648 | P34: 281 | Q34: 1686 | R34: =IF(SUM(M34,O34,Q34)=0,"",SUM(M34,O34,Q34)) -> 4057
A35: =IF(MATRICULA!B21=0,"",MATRICULA!B21) -> TELESECUNDARIAS | B35: 14 | D35: 14 | F35: =IF(SUM(B35:E35)=0,"",SUM(B35:E35)) -> 28 | G35: 35 | H35: 66 | I35: =IF(SUM(G35,H35)=0,"",SUM(G35,H35)) -> 101 | J35: 2 | K35: 5 | L35: 41 | M35: =IF(SUM(K35,L35)=0,"",SUM(K35,L35)) -> 46 | N35: 188 | O35: 596 | P35: 100 | Q35: 939 | R35: =IF(SUM(M35,O35,Q35)=0,"",SUM(M35,O35,Q35)) -> 1581
A36: =IF(MATRICULA!B22=0,"",MATRICULA!B22) ->  | F36: =IF(SUM(B36:E36)=0,"",SUM(B36:E36)) ->  | I36: =IF(SUM(G36,H36)=0,"",SUM(G36,H36)) ->  | M36: =IF(SUM(K36,L36)=0,"",SUM(K36,L36)) ->  | R36: =IF(SUM(M36,O36,Q36)=0,"",SUM(M36,O36,Q36)) -> 
A37: Total | B37: =IF(SUM(B32:B36)=0,"",SUM(B32:B36)) -> 316 | D37: =IF(SUM(D32:D36)=0,"",SUM(D32:D36)) -> 105 | F37: =IF(SUM(F32:F36)=0,"",SUM(F32:F36)) -> 421 | G37: 567 | H37: 362 | I37: 929 | J37: 737 | K37: 1180 | L37: 404 | M37: 1584 | N37: 1837 | O37: 5021 | P37: 763 | Q37: 4959 | R37: 11564
A39: NOTA: | L39: NOTA:
A40: I.: INASISTENCIAS | L40: H.N.L.E.: HORAS NO LABORADOS POR LICENCIAS ECONÓMICAS
A41: H.N.L.I.: HORAS NO LABORADAS POR INASISTENCIAS | L41: D.N.L.E.: DÍAS NO LABORADOS POR LICENCIAS ECONÓMICAS
A42: D.N.L.I.: DÍAS NO LABORADOS POR INASISTENCIAS | L42: L.M.: PERSONAS QUE PRESENTARON LICENCIAS MÉDICAS
A43: R. : CANTIDAD DE RETARDOS | L43: H.N.L.M.: HORAS NO LABORADAS POR LICENCIAS MÉDICAS
A44: L.E.: PERSONAL QUE SOLICITÓ LICENCIAS ECONÓMICAS | L44: D.N.L.M.: DÍAS NO LABORADOS POR LICENCIAS MÉDICAS
A45: P.D.: PERMISOS DIRECCIÓN | L45: F: FONE E: EVENTUALES
